Cogmind - Beta 16 --- EXPLORER MODE // 2025.11.11 @ 13:45:14 Player: K.K.Y. Result: Destroyed by P-60 Hacker with Shock Rifle Performance ------------- Evolutions (0) 0 Regions Visited (4) 800 Robots Destroyed (42) 210 Value Destroyed (1090) 1090 Prototype IDs (1) 20 Alien Tech Used (0) 0 Bonus (-82) -82 TOTAL SCORE: 2038 Bonus ------- Friendly Fire -82 Cogmind --------- Core Integrity 0/250 Matter 300/300 Energy 200/200 System Corruption 0% Temperature Cool (0) Movement Rolling (110) Location -7/Recycling Parts ------- > --- POWER (1) -------- Subdweller Power Source > --- PROPULSION (3) --- Subdweller Monowheel Subdweller Monowheel Subdweller Monowheel > --- UTILITY (2) ------ (None) > --- WEAPON (2) ------- Subdweller Laser Subdweller Beam Cannon > --- INVENTORY (5) ---- VSS Leg Scrap Shield Tower Shield Peak State ------------ > --- POWER ------------ Subdweller Power Source > --- PROPULSION ------- Aluminum Leg Subdweller Monowheel Subdweller Monowheel > --- UTILITY ---------- Medium Storage Unit Experimental Sensor Array > --- WEAPON ----------- Subdweller Machine Gun Subdweller Shrapnel Launcher > --- INVENTORY -------- Subdweller Power Source Subdweller Monowheel Subdweller Optics Scrap Shield Tower Shield V3-11A's Pendant Subdweller Laser Subdweller Beam Cannon [Rating: 24] Favorites ----------- Power Subdweller Power Source Engine Subdweller Power Source Propulsion Aluminum Leg Leg Aluminum Leg Wheel Subdweller Monowheel Utility Medium Storage Unit Device Experimental Sensor Array Storage Medium Storage Unit Weapon EM Pulse Gun Energy Gun EM Pulse Gun Energy Cannon Subdweller Beam Cannon Ballistic Gun Subdweller Machine Gun Launcher Subdweller Shrapnel Launcher Build | -11 -10 -10 -10 -7 ------- Run | Yrd Mat Min Sub Rec Slots Evolved 1 | . 1 . . . Power . | . . . . . Propulsion 1 | . 1 . . . Utility . | . . . . . Weapon . | . . . . . Parts Attached 26 | 7 1 2 10 6 Power 4 | 1 . . 2 1 Engine 4 | 1 . . 2 1 Core . | . . . . . Reactor . | . . . . . Propulsion 9 | 2 1 . 3 3 Treads . | . . . . . Leg 3 | 2 1 . . . Wheel 6 | . . . 3 3 Hover . | . . . . . Flight . | . . . . . Utility 4 | 2 . 1 1 . Device 2 | 1 . 1 . . Storage 2 | 1 . . 1 . Processor . | . . . . . Hackware . | . . . . . Protection . | . . . . . Artifact . | . . . . . Weapon 9 | 2 . 1 4 2 Energy Gun 3 | 1 . . 1 1 Energy Cannon 2 | . . . 1 1 Ballistic Gun 2 | 1 . . 1 . Ballistic Cannon . | . . . . . Launcher 2 | . . 1 1 . Special Weapon . | . . . . . Impact Weapon . | . . . . . Slashing Weapon . | . . . . . Piercing Weapon . | . . . . . Special Melee Weapon . | . . . . . Unidentified Prototypes 1 | . . 1 . . Parts Lost 11 | . . . 7 4 Power 1 | . . . . 1 Propulsion 5 | . . . 5 . Utility 1 | . . . . 1 Weapon 4 | . . . 2 2 Highest Loss Streak 3 | . . . 3 3 To Critical Strikes . | . . . . . Average Backups 8 | 1 1 5 10 13 Power 1 | . . . 1 2 Propulsion 2 | . 1 2 2 4 Utility 3 | . . 2 4 5 Weapon 1 | . . 1 2 1 Tool/Special . | . . . . . Unused Backups 17 | . . . 6 11 Power 1 | . . . . 1 Propulsion 6 | . . . 2 4 Utility 7 | . . . 3 4 Weapon 3 | . . . 1 2 Tool/Special . | . . . . . Average Slot Usage (%) 83 | . 90 100 83 55 Engine 10 | . 12 12 10 2 Leg 20 | . 28 37 17 . Wheel 8 | . . . 10 15 Device 7 | . 12 12 7 . Storage 12 | . 12 12 12 12 Energy Gun 7 | . 12 12 4 11 Energy Cannon 2 | . . . 2 11 Ballistic Gun 7 | . 12 8 7 . Launcher 6 | . . 3 8 . Peak Build Rating 24 | 7 8 18 24 20 Average Rating 16 | 3 7 15 18 13 On Entrance 9 | . 7 8 18 15 Avg Prop Armor Cover (%) 11 | . . . 11 5 Naked Turns . | . . . . . Heaviest Build 57 | 20 20 22 57 57 Greatest Support 60 | 20 30 30 40 60 Greatest Overweight (x) 18 | 1 . . 18 18 Average Overweight (x) 1 | . . . 1 7 Largest Inventory Capacity 25 | 10 10 10 25 25 Average Capacity 15 | 7 10 10 16 25 Most Carried 17 | 5 3 7 17 17 Average Carried 10 | 1 1 5 11 15 Final Capacity 25 | 10 10 10 25 5 Final Carried 17 | . 3 7 17 5 Class Distribution -------------------- 94% | Hacker-Mutant 5% | Scavenger-Mutant Dominant Class ---------------- Hacker-Mutant | -10/Materials Hacker-Mutant | -10/Mines Hacker-Mutant | -10/Subcaves Hacker-Mutant | -7/Recycling Resources | -11 -10 -10 -10 -7 ----------- Run | Yrd Mat Min Sub Rec Matter Collected 1285 | 211 109 42 821 102 Remotely . | . . . . . Salvage Created 1244 | . 253 108 830 53 Parts 80 | . 23 7 50 . Haulers Intercepted . | . . . . . Recyclers Shooed 1 | . 1 . . . Parts Field Recycled . | . . . . . Retrieved Matter . | . . . . . Parts Self-Destructed . | . . . . . Prevented . | . . . . . Parts Restored . | . . . . . Kills | -11 -10 -10 -10 -7 ------- Run | Yrd Mat Min Sub Rec Combat Hostiles Destroyed 32 | . 8 2 21 1 Guns 15 | . 7 . 7 1 AOE 16 | . 1 2 13 . Classes Destroyed 9 | . 5 . 4 . Worker 3 | . 1 2 . . Tunneler 1 | . 1 . . . Watcher 2 | . 2 . . . Swarmer 8 | . 6 2 . . Grunt 7 | . 2 3 2 . Sentry 2 | . . . 1 1 Artisan 1 | . . . 1 . Subdweller 18 | . . . 18 . Zionite 1 | . . . 1 . Best Kill Streak 4 | . 3 3 4 1 Combat Bots Only 4 | . 2 2 4 1 Max Kills in Single Turn 2 | . 1 2 2 1 Gunslinging . | . . . . . Exploded 1 | . 1 1 1 . Melee . | . . . . . Uniques/NPCs Destroyed . | . . . . . Combat | -11 -10 -10 -10 -7 -------- Run | Yrd Mat Min Sub Rec Hostile Shots Fired 258 | . 14 10 133 101 Missed 93 | . 8 7 46 32 Hits 165 | . 6 3 87 69 Projectile 165 | . 6 3 87 69 Critical Strikes 1 | . . . 1 . Damage Taken 1224 | . 77 98 725 324 Core 255 | . 16 5 143 91 Absorbed by Shields . | . . . . . Ignored by Resistances 795 | . 50 61 460 224 Core Remaining (%) 100 | 100 . . . . Volleys Fired 165 | . 16 24 113 12 Largest 2 | . 2 2 2 2 Hottest 140 | . 60 73 120 140 Shots Fired 255 | . 32 47 162 14 Gun 177 | . 32 25 108 12 Cannon 15 | . . . 13 2 Launcher 63 | . . 22 41 . Special . | . . . . . Kinetic 69 | . 16 1 42 10 Thermal 17 | . . . 13 4 Explosive 57 | . . 22 35 . Electromagnetic 112 | . 16 24 72 . Robot Hit Streak 20 | . 6 3 20 16 Robot Miss Streak 2 | . 2 1 1 . Penetration Max . | . . . . . Secondary Targets 1 | . 1 . . . Max Gunslinging Chain 1 | . 1 . . . Shots Hit Robots 135 | . 21 5 96 13 Core Hits 79 | . 15 13 47 4 Critical Kills 2 | . . . 1 1 Critical Parts Destroyed 1 | . . . . 1 Critical Strikes 3 | . . . 1 2 Meltdown 1 | . . . 1 . Destroy 2 | . . . . 2 Melee Attacks . | . . . . . Impact . | . . . . . Slashing . | . . . . . Piercing . | . . . . . Sneak Attacks . | . . . . . Combat Hostiles . | . . . . . Follow-up Attacks . | . . . . . Damage Inflicted 3825 | . 339 479 2703 304 Guns 1565 | . 270 38 1010 247 Cannons 113 | . . . 83 30 Explosions 2069 | . 27 432 1610 . Melee . | . . . . . Ramming 78 | . 42 9 . 27 Kinetic 1264 | . 103 . 956 205 Thermal 333 | . 27 151 83 72 Explosive 1473 | . . 281 1192 . Electromagnetic 677 | . 167 38 472 . Impact . | . . . . . Slashing . | . . . . . Piercing . | . . . . . Highest Corruption . | . . . . . Average Corruption . | . . . . . Corruption Purged . | . . . . . Corruption Blocked . | . . . . . Overload Shots . | . . . . . Overflow Damage 30 | . . 30 . . Projectiles . | . . . . . Explosions 30 | . . 30 . . Melee . | . . . . . Knockbacks . | . . . . . Impact . | . . . . . Kinetic . | . . . . . Secondary . | . . . . . Self-Inflicted Damage 127 | . . 88 26 13 Shots 8 | . . 6 2 . Rammed 2 | . . . . 2 Targets Rammed 10 | . 5 3 . 2 Kicked 8 | . 5 3 . . Crushed . | . . . . . Highest Temperature 138 | . 6 96 15 138 Average Temperature 26 | . 6 30 5 36 Received Heat Transfer 633 | . 12 . 471 150 Siege Activations . | . . . . . Martial Activations . | . . . . . Shielding Activations . | . . . . . Robots Disrupted . | . . . . . Combat Hostiles . | . . . . . Robots Corrupted 1 | . . . 1 . Combat Hostiles 1 | . . . 1 . Parts Fried 3 | . . . 3 . Impact Corruptions . | . . . . . Robots Melted 1 | . . . 1 . Combat Hostiles 1 | . . . 1 . Parts Melted 1 | . . . . 1 Heat Transferred 448 | . . 250 111 87 Parts Sabotaged . | . . . . . Parts Stolen . | . . . . . Parts Stripped . | . . . . . Power Chain Reactions 4 | . 1 3 . . Alert | -11 -10 -10 -10 -7 ------- Run | Yrd Mat Min Sub Rec Maximum Alert Level . | . . . . . Low Security (%) 100 | 100 100 100 . 100 Level 1 . | . . . . . Level 2 . | . . . . . Level 3 . | . . . . . Level 4 . | . . . . . Level 5 . | . . . . . High Security . | . . . . . Max Security . | . . . . . Peak Influence 84 | . 84 60 . 21 Initial . | . . . . . Average 5 | . 17 1 . . Influence Increases 615 | . 245 114 235 21 Destroy 0b10 Robot/C 280 | . 160 40 60 20 Destroy 0b10 Robot/NC 30 | . 20 10 . . Destroy Leader 54 | . 34 10 10 . Successful Hack 24 | . 24 . . . Destroy Structure 62 | . 7 54 . 1 Lose Combat Pursuer 165 | . . . 165 . Influence Decreases 615 | . 245 69 280 21 Entered New Map 30 | . . . 30 . Time Decay 565 | . 245 69 230 21 Lost Part 20 | . . . 20 . Squads Dispatched . | . . . . . Investigation . | . . . . . Extermination . | . . . . . Reinforcement . | . . . . . Assault . | . . . . . Garrison . | . . . . . Intercept . | . . . . . Searches Triggered . | . . . . . Construction Impeded . | . . . . . Haulers Reinforced . | . . . . . Active Scanning Responses . | . . . . . Cargo Convoy Interrupts . | . . . . . Stealth | -11 -10 -10 -10 -7 --------- Run | Yrd Mat Min Sub Rec Distress Signals 1 | . 1 . . . Communications Jammed . | . . . . . Distress Signals . | . . . . . Times Spotted 42 | . 10 2 27 3 Peak Tracking Total 3 | . 3 2 2 1 Tactical Retreats 6 | . . . 6 . Traps | -11 -10 -10 -10 -7 ------- Run | Yrd Mat Min Sub Rec Traps Triggered 2 | . 1 . 1 . Indirectly . | . . . . . Trap Hack Attempts . | . . . . . Triggered . | . . . . . Disarmed . | . . . . . Reprogrammed . | . . . . . Reused . | . . . . . Traps Extracted . | . . . . . Installed . | . . . . . Triggered . | . . . . . Machines | -11 -10 -10 -10 -7 ---------- Run | Yrd Mat Min Sub Rec Machines Disabled 2 | . . . 2 . Max in Single Turn 1 | . . . 1 . Machines Repaired . | . . . . . Machines Dismantled . | . . . . . Machines Sabotaged . | . . . . . Overloaded Fab Kills . | . . . . . Hacking | -11 -10 -10 -10 -7 --------- Run | Yrd Mat Min Sub Rec Machines Accessed 6 | . 4 . 2 . Terminals 4 | . 4 . . . Fabricators . | . . . . . Repair Stations . | . . . . . Recycling Units . | . . . . . Scanalyzers . | . . . . . Garrison Access . | . . . . . Total Hacks 25 | . 14 . 11 . Successful 21 | . 10 . 11 . Failed 4 | . 4 . . . Catastrophic . | . . . . . Database Lockouts . | . . . . . Manual 3 | . 3 . . . Terminals 14 | . 14 . . . Fabricators . | . . . . . Repair Stations . | . . . . . Recycling Units . | . . . . . Scanalyzers . | . . . . . Garrison Access . | . . . . . Terminal Hacks 21 | . 10 . 11 . Record 14 | . 3 . 11 . Branch Access Points 1 | . 1 . . . Locate Traps 1 | . 1 . . . Registered Components 1 | . 1 . . . Registered Prototypes 1 | . 1 . . . Zone Layout 3 | . 3 . . . Fabricator Hacks . | . . . . . Repair Station Hacks . | . . . . . Recycling Unit Hacks . | . . . . . Scanalyzer . | . . . . . Garrison Access Hacks . | . . . . . Unauthorized Hacks . | . . . . . Terminals . | . . . . . Fabricators . | . . . . . Repair Stations . | . . . . . Recycling Units . | . . . . . Scanalyzers . | . . . . . Garrison Access . | . . . . . Data Cores Recovered . | . . . . . Used . | . . . . . Hacking Detections 4 | . 4 . . . Full Trace Events 2 | . 2 . . . Feedback Events . | . . . . . Feedback Blocked . | . . . . . Robot Schematics Acquired . | . . . . . Robots Built . | . . . . . Authchips . | . . . . . Time . | . . . . . Total Robot Build Rating . | . . . . . Part Schematics Acquired . | . . . . . Parts Built . | . . . . . Authchips . | . . . . . Time . | . . . . . Total Part Build Rating . | . . . . . Part Studies Acquired . | . . . . . Parts Repaired . | . . . . . Time . | . . . . . Parts Recycled . | . . . . . Recycled Matter . | . . . . . Retrieved Matter . | . . . . . Retrieved Components . | . . . . . Parts Scanalyzed . | . . . . . Part Schematics Acquired . | . . . . . Parts Damaged . | . . . . . Bothacking | -11 -10 -10 -10 -7 ------------ Run | Yrd Mat Min Sub Rec Used RIF Installer . | . . . . . Robots Hacked . | . . . . . Non-combat . | . . . . . Combat . | . . . . . Robot Hacks Applied . | . . . . . Relay Couplers Released . | . . . . . Fabnet Peak Effective % . | . . . . . Robots Rewired . | . . . . . Allies Hacked . | . . . . . Hacks Repelled . | . . . . . Allies | -11 -10 -10 -10 -7 -------- Run | Yrd Mat Min Sub Rec Total Allies 3 | . . 3 . . Largest Group 3 | . . 3 . . Highest-Rated Group 40 | . . 40 . . Highest-Rated Ally 16 | . . 16 . . Total Orders . | . . . . . Ally Attacks . | . . . . . Total Damage . | . . . . . Kills . | . . . . . Allies Corrupted . | . . . . . Allies Melted . | . . . . . Intel | -11 -10 -10 -10 -7 ------- Run | Yrd Mat Min Sub Rec Active Infowar (turns) 4124 | 22 668 994 2440 . Sensors 3332 | . . 892 2440 . Structural 792 | 22 668 102 . . Robot Analysis Total . | . . . . . Derelict Logs Recovered 1 | . . . 1 . Drone Launches . | . . . . . Drone Recoveries . | . . . . . Exploration | -11 -10 -10 -10 -7 ------------- Run | Yrd Mat Min Sub Rec Turns Passed 6476 | 49 668 995 4147 617 Spaces Moved 3359 | 44 505 724 1964 122 Core 174 | 27 . . 91 56 Treads . | . . . . . Legs 1803 | 17 505 724 557 . Wheels 1382 | . . . 1316 66 Hover . | . . . . . Flight . | . . . . . Fastest Speed 50 | 50 120 120 110 110 Average Speed 173 | 80 120 120 190 473 Slowest Speed 950 | 120 120 120 950 950 Overloaded Moves . | . . . . . Propulsion Burnouts . | . . . . . Robots Hopped . | . . . . . Potential Cave-ins 3 | . . 3 . . Cave-ins Triggered . | . . . . . Exploration Rate (%) 64 | 4 87 100 88 42 Regions Visited 4 Branch Regions 3 Pre-discovered Areas 3 | . . 1 2 . Known Exits Taken 4 | 1 1 1 1 . Unknown Exits Taken . | . . . . . Scrap Searched 3 | . . . 3 . Spaces Dug 246 | . . 195 51 . Terrain Destroyed 518 | . 7 231 279 1 Melee . | . . . . . Projectile 2 | . . . 1 1 AOE 516 | . 7 231 278 . Terrain Rammed . | . . . . . Walls Destroyed . | . . . . . Machines Disabled . | . . . . . Actions | -11 -10 -10 -10 -7 --------- Run | Yrd Mat Min Sub Rec Total 3763 | 57 534 802 2223 147 Wait 149 | . 4 45 100 . Move 3355 | 43 504 723 1963 122 Hop . | . . . . . Pick Up 41 | 6 4 4 23 4 Fast Attach 8 | 2 . . 6 . Attach 14 | 5 1 1 1 6 Detach 3 | . . 1 1 1 Swap 4 | . . 1 3 . Drop 14 | 1 . . 13 . Fire 165 | . 16 24 113 12 Melee . | . . . . . Ram 2 | . . . . 2 Kick 8 | . 5 3 . . Crush . | . . . . . Escape Stasis . | . . . . . Rewire . | . . . . . Trap . | . . . . . Miscellaneous . | . . . . . Route ------- -11/Scrapyard -10/Materials (discovered 5 exits: *Mat x3 / *Min x2) -10/Mines (discovered 3 exits: *Mat x2 / *Sub) -10/Subcaves (discovered 3 exits: *Mat x2 / *Rec) -7/Recycling History --------- Turn | Location | Event 3 | -11/Scrapyard | Identified exit to Materials 3 | -11/Scrapyard | Discovered exit to Materials (range 16) 50 | -11/Scrapyard | Entered Materials 50 | -10/Materials | Evolved 1 slot: Propulsion x1 143 | -10/Materials | Identified exit to Mines 143 | -10/Materials | Discovered exit to Mines (range 7) 164 | -10/Materials | Discovered exit to Mines (range 10) 246 | -10/Materials | Identified exit to Materials 246 | -10/Materials | Discovered exit to Materials (range 11) 317 | -10/Materials | Build established: Hacker-Mutant 443 | -10/Materials | Discovered exit to Materials (range 15) 550 | -10/Materials | Discovered exit to Materials (range 12) 718 | -10/Materials | Entered Mines 724 | -10/Mines | Learned location of Storage (-7) 752 | -10/Mines | Assisted by bots powering up and referring to "LRC-V3" 817 | -10/Mines | Found a damaged Exp. Sensor Array with a note attached 819 | -10/Mines | Found Prototype Device 821 | -10/Mines | Identified Exp. Sensor Array 915 | -10/Mines | Discovered exit to Materials (range 8) 1120 | -10/Mines | Received a Rocket Launcher from a helpful Derelict 1165 | -10/Mines | Discovered exit to Materials (range 8) 1705 | -10/Mines | Identified exit to Subcaves 1705 | -10/Mines | Discovered exit to Subcaves (range 6) 1713 | -10/Mines | Entered Subcaves 1714 | -10/Subcaves | Approached by a straggling Scientist 1735 | -10/Subcaves | Ambushed by Subdweller buried in earth 1804 | -10/Subcaves | Identified exit to Materials 1804 | -10/Subcaves | Discovered exit to Materials (range 14) 2268 | -10/Subcaves | Ambushed by Subdweller buried in earth 2274 | -10/Subcaves | Ambushed by Subdweller buried in earth 2277 | -10/Subcaves | Ambushed by Subdweller buried in earth 2293 | -10/Subcaves | Ambushed by Subdweller buried in earth 2326 | -10/Subcaves | Learned location of Zion (-6) 2326 | -10/Subcaves | Met a Zionite searching for "candidates" 2494 | -10/Subcaves | Shifting Twisted Machinery released Sub. Monowheel 2992 | -10/Subcaves | Discovered exit to Materials (range 9) 3110 | -10/Subcaves | Visited 4L-MR0's lab 3125 | -10/Subcaves | Found Prototype Protection 3225 | -10/Subcaves | Shifting Twisted Machinery released Piercing Trap 3232 | -10/Subcaves | Shifting Twisted Machinery released Battle Rifle 3381 | -10/Subcaves | Lost 3 parts (2n1w) 3422 | -10/Subcaves | Shifting Twisted Machinery released Sub. Beam Cannon 3493 | -10/Subcaves | Shifting Twisted Machinery released Piercing Trap 3726 | -10/Subcaves | Visited triangular shrine 3733 | -10/Subcaves | Found Prototype Device 3806 | -10/Subcaves | A swath of the cavern ceiling suddenly collapsed 3817 | -10/Subcaves | Identified exit to Recycling 3817 | -10/Subcaves | Discovered exit to Recycling (range 10) 3821 | -10/Subcaves | Core integrity fell below 50% 4042 | -10/Subcaves | Build established: Scavenger-Mutant 4103 | -10/Subcaves | A swath of the cavern ceiling suddenly collapsed 4143 | -10/Subcaves | Shifting Twisted Machinery released Lgt. Humpback 4365 | -10/Subcaves | Build established: Hacker-Mutant 5430 | -10/Subcaves | Visited Clippyterm 5444 | -10/Subcaves | Learned 40 Factory zone layouts 5860 | -10/Subcaves | Entered Recycling 5887 | -7/Recycling | Core integrity fell below 20% 5930 | -7/Recycling | Lost 3 parts (1p2w) 6477 | -7/Recycling | Destroyed by P-60 Hacker with Shock Rifle Last Messages --------------- 05892_ Broken Sub. Shrapnel Launcher destroyed. 05895_ Sub. Power Source destroyed. 05899_ Sub. Machine Gun destroyed. 05901_ Y-54 Guardian suffers critical hit (Destroy). 05901_ Destroyed Imp. Heat Sink. 05904_ Y-54 Guardian suffers critical hit (Destroy). 05904_ Imp. Deuterium Engine melted. 05904_ Y-54 Guardian destroyed. 05907_ Acquired 53 matter. 06400_ Acquired 49 matter. 06420_ Acquired Imp. Carbon-fiber Leg. 06423_ Acquired VSS Leg. 06425_ Acquired Carbon-fiber Leg. 06427_ Acquired Beam Rifle. 06435_ Slammed into R-06 Scavenger. 06474_ G-47 Trooper springs to life. 06475_ P-60 Hacker springs to life. 06477_ Lgt. Humpback destroyed. Map ----- +----------------------------------------------------+ | ????????????????????????????????????????????? | | ??????????????????????????? ??????????????? | | ???????????????????????????? ??????????????? | | ???????????????????????????? ???????#####+#? | | ????????????????????????????? ????? #"T"# ? | | ????????????????????????????? ????? ? | | ?????????????????????????????#+#???? ? | | ?????????????????????????????# ##### """?" | | ?????????????????????????????# """"" | | ???????????????????????####### """"" | | ???????????????????????# # | | ???????????????????????# | | ???????????????????????# """"" | | ???????????????????????# """"" | | ???????????????????????# #### """"" | | ???????????????????????## ##??# | | ????????????????????????# #???# | | ????????????????????????# #####+##+##### | | ????????????????????????# ]%# # | | ???????????###########+## ]# %+% | | ???????????# gt # %%# # | | ???????????# ! %# ### """ """ # | | ???????????# ! # #?# """T""" # | | ???????????# ! * + #?############ | | ???????????# t !=[ # #????????????# | | ???????????# !g@=a #####????????????# | | ???????????# ==! #???????????????##### | | ???????????# pg g =#???????????????# | | ???????????#trh !!| g #???????????????# ! | | ???????????#at #???????????????# | | ???????????# ! ! k #???????????????# | | ???????????# k r #???????????????# | | ???????????##############???????????????# | | ????????????????????????????????????????#! | | ????????????????????????????????????????##### | | ????????????????????????????????????????????? | | ????????????????????????????????????????????? | | ????????????????????????????????????????????? | | ????????????????????????????????????????????? | | ????????????????????????????????????????????? | | ????????????????????????????????????????????? | | ????????????????????????????????????????????? | | ????????????????????????????????????????????? | | ????????????????????????????????????????????? | | ????????????????????????????????????????????? | | ????????????????????????????????????????????? | | ????????????????????????????????????????????? | | ????????????????????????????????????????????? | | ????????????????????????????????????????????? | | ????????????????????????????????????????????? | +----------------------------------------------------+ Best States ------------- Heat Dissipation 25 Energy Generation 15 Energy Capacity 250 Matter Stores 300 Matter Capacity 300 Sight Range 16 Robot Scan Range 20 Terrain Scan Density 10 Resistance: KI 35 Resistance: TH 35 Resistance: EX 35 Resistance: EM 35 Resistance: I 35 Resistance: S 35 Resistance: P 35 Evasion (%) 55 Offensive Hacking 20 Item Schematics ----------------- None Robot Schematics ------------------ None Fabricated ------------ Nothing Repaired ---------- Nothing Studied --------- None Alien Tech Used ----------------- None Achievements -------------- Mistaken Identity Challenges ------------ None Game ------ Seed MediumStasisSabre Manual? 0 Play Time 00:26:31 Cumulative 71.3 hours Start 2025.11.11 @ 13:20:14 End 2025.11.11 @ 13:45:14 Sessions 1 Manual Loads 0 Difficulty Explorer Special Mode None Game No. 58 Rogue 0 Adventurer 0 Explorer 58 Win Type - Total 0 Types 0/0/0/0/0/0/0/0/0/0 Lore% 46 Gallery% 52 Achievement% 40 Wizard Run 0 Options --------- Layout 1 ASCII 0 Keyboard 0 Movement Mouse Keybinds 0 Fullscreen 1 Font 24/Smallcaps Map View 50x35 Zoom Use 0% Tactical HUD 1 Map Filters NONE Filters NONE Steam 1 RUN: c55ff8ee-2f96-4772-8509-801f2f238dff